bitfinex-derivatives/quotes_ETHF0:USTF0_20250524
["timestamp","ask_amount","ask_price","bid_price","bid_amount"]
[1748127213179,3.99776,2531.0,2530.9,1.95394028]
[1748127214879,3.99776,2531.0,2530.9,2.63324028]
[1748127217186,3.2078,2531.0,2530.9,3.42323028]
[1748127217482,2.36079478,2531.2,2531.1,0.78993]
[1748127217671,2.36079478,2531.2,2531.1,1.6461862]
[1748127218486,3.15069478,2531.2,2531.1,1.6461862]
[1748127218684,3.15069478,2531.2,2531.1,1.64670854]
[1748127219092,3.15069478,2531.2,2531.1,0.85677854]
[1748127219581,3.15069478,2531.2,2531.1,2.18967854]
[1748127219772,3.15069478,2531.2,2531.1,2.18964098]
[1748127220582,3.15069478,2531.2,2531.1,2.18956922]
[1748127221187,3.15069478,2531.2,2531.1,2.18953499]
[1748127222085,2.36079478,2531.2,2531.1,2.97946499]
[1748127222288,2.36079478,2531.2,2531.1,7.97946499]
[1748127222476,2.36079478,2531.2,2531.1,7.97909738]
[1748127223387,2.36079478,2531.2,2531.1,11.18689738]
[1748127223788,0.78978,2531.6,2531.5,0.78981]
[1748127223981,0.78978,2531.6,2531.5,17.69907738]
[1748127224289,0.78978,2531.6,2531.5,17.6982824]
[1748127225489,0.78977,2531.7,2531.5,17.6982824]
[1748127225792,0.78977,2531.7,2531.6,2.2057724]
[1748127226189,0.78977,2531.7,2531.6,2.99464138]
[1748127226990,0.78973,2531.8,2531.7,0.78973]
[1748127227190,0.78973,2531.8,2531.7,3.37905314]
[1748127227391,0.78973,2531.8,2531.7,2.58932314]
[1748127228089,2.08363,2531.8,2531.7,2.5889847]
[1748127230097,2.08363,2531.8,2531.7,18.6059847]
[1748127230488,2.08363,2531.8,2531.7,16.5723847]
[1748127231790,2.08363,2531.8,2531.7,16.57276302]
[1748127232983,2.08363,2531.8,2531.7,0.55576302]
[1748127233597,0.78982,2531.5,2531.3,16.016]
[1748127233795,3.99762,2531.5,2531.4,0.55584256]
[1748127236495,5.99172,2531.5,2531.4,0.55584256]
[1748127237496,0.78984,2531.4,2531.3,17.307]
[1748127237705,2.11214,2531.4,2531.3,17.86310138]
[1748127238802,4.68502,2531.5,2531.3,18.65295138]
[1748127238999,4.68502,2531.5,2531.4,1.94940138]
[1748127239202,4.68502,2531.5,2531.4,2.60410138]
[1748127239499,4.68502,2531.5,2531.4,2.60421504]
[1748127240795,4.68502,2531.5,2531.4,0.55621504]
[1748127240996,0.78984,2531.4,2531.3,17.4402]
[1748127241192,2.15584,2531.4,2531.3,17.99652193]
[1748127241702,2.15584,2531.4,2531.3,1.98052193]
[1748127241909,2.15584,2531.4,2531.3,17.99652193]
[1748127242411,2.15584,2531.4,2531.3,17.99665776]
[1748127242591,2.15584,2531.4,2531.3,1.98065776]
[1748127243198,2.15584,2531.4,2531.3,17.99665776]
[1748127243507,2.15584,2531.4,2531.3,17.99765776]
[1748127244398,2.15584,2531.4,2531.3,17.99790189]
[1748127244909,5.36364,2531.4,2531.3,17.99790189]
[1748127245213,5.36364,2531.4,2531.3,1.98090189]
[1748127245508,5.36364,2531.4,2531.3,17.99790189]
[1748127246106,5.36364,2531.4,2531.3,17.99818618]
[1748127247311,3.99764,2531.4,2531.3,17.99818618]
[1748127247512,3.2078,2531.4,2531.3,18.69558618]
[1748127247705,3.2078,2531.4,2531.3,18.99535587]
[1748127247907,3.99764,2531.4,2531.3,18.1386]
[1748127248208,3.99764,2531.4,2531.3,18.99550637]
[1748127248407,3.99764,2531.4,2531.3,18.99552403]
[1748127248798,3.99764,2531.4,2531.3,18.69572349]
[1748127249003,3.99764,2531.4,2531.3,2.9785339]
[1748127249207,3.99764,2531.4,2531.3,18.69572349]
[1748127249407,3.99764,2531.4,2531.3,18.99554933]
[1748127249807,3.99764,2531.4,2531.3,18.69584186]
[1748127250012,3.99764,2531.4,2531.3,2.67884186]
[1748127250212,3.99764,2531.4,2531.3,2.97870203]
[1748127250410,3.99764,2531.4,2531.3,18.99570203]
[1748127251110,3.99764,2531.4,2531.3,18.99569459]
[1748127251611,3.99764,2531.4,2531.3,18.99571059]
[1748127253613,3.99764,2531.4,2531.3,18.99602777]
[1748127255306,3.99764,2531.4,2531.3,18.99617266]
[1748127259120,3.99764,2531.4,2531.3,18.99657194]
[1748127261019,3.99764,2531.4,2531.3,18.99670128]
[1748127261513,3.2078,2531.4,2531.3,18.99670128]
[1748127262123,2.36152274,2531.5,2531.4,0.78984]
[1748127262312,3.15133274,2531.5,2531.4,3.03794128]
[1748127262512,2.36152274,2531.5,2531.4,3.03794128]
[1748127262717,2.36152274,2531.5,2531.4,2.48022272]
[1748127263012,0.78981,2531.5,2531.4,3.74253917]
[1748127264715,0.78981,2531.5,2531.4,3.74240244]
[1748127264917,0.78981,2531.5,2531.4,2.95256244]
[1748127265116,0.78981,2531.5,2531.4,1.56256244]
[1748127265415,0.78981,2531.5,2531.4,0.85848386]
[1748127265719,2.87051,2531.5,2531.4,0.85848386]
[1748127266617,2.87051,2531.5,2531.4,0.85851838]
[1748127267018,2.87051,2531.5,2531.4,0.85858813]
[1748127267220,5.23203274,2531.5,2531.4,0.85858813]
[1748127268422,0.78987,2531.3,2531.2,18.033]
[1748127268622,0.78987,2531.3,2531.2,17.48218292]
[1748127269325,3.99764,2531.4,2531.2,17.48218292]
[1748127269526,3.99764,2531.4,2531.3,0.85858292]
[1748127269917,3.2078,2531.4,2531.3,1.64845292]
[1748127271428,2.36152274,2531.5,2531.4,0.78984]
[1748127271627,2.36152274,2531.5,2531.4,1.64842292]
[1748127272123,2.36152274,2531.5,2531.4,1.64836101]
[1748127272633,3.99756,2531.7,2531.6,0.78978]
[1748127272826,3.99756,2531.7,2531.6,17.62730101]
[1748127273628,3.99756,2531.7,2531.6,17.32697219]
[1748127273832,3.99756,2531.7,2531.6,18.31204749]
[1748127274132,3.99756,2531.7,2531.6,18.31204741]
[1748127275030,3.99756,2531.7,2531.6,18.31200597]
[1748127275932,3.99756,2531.7,2531.6,18.31170682]
[1748127276533,0.78976,2531.7,2531.6,18.31170682]
[1748127277130,0.78973,2531.8,2531.6,17.52192682]
[1748127277335,0.78973,2531.8,2531.7,1.64783573]
[1748127279139,0.78973,2531.8,2531.7,0.85809573]
[1748127279631,0.78973,2531.8,2531.7,0.85792255]
[1748127280639,0.78973,2531.8,2531.7,1.64766255]
[1748127280841,0.78973,2531.8,2531.7,0.85792255]
[1748127281643,4.56202908,2531.9,2531.7,1.64759316]
[1748127281842,4.56202908,2531.9,2531.8,0.5577704]
[1748127282644,4.56202908,2531.9,2531.8,1.3474804]
[1748127282846,4.56202908,2531.9,2531.8,0.5577704]
[1748127283547,0.78972,2531.8,2531.7,0.78973]
[1748127283847,2.20052634,2531.9,2531.7,1.6475361]
[1748127284049,2.20052634,2531.9,2531.8,0.5577268]
[1748127286550,0.78972,2531.8,2531.6,17.45356]
[1748127286750,0.78972,2531.8,2531.7,0.85779787]
[1748127287043,1.41081634,2531.9,2531.8,0.78971]
[1748127287044,0.00591634,2531.9,2531.8,0.78971]
[1748127287250,0.79559634,2531.9,2531.8,0.5577224]
[1748127287449,0.79559634,2531.9,2531.8,1.9234224]
[1748127289251,0.79559634,2531.9,2531.8,1.92346089]
[1748127289753,0.79559634,2531.9,2531.8,2.22356382]
[1748127289954,0.79559634,2531.9,2531.8,2.22356399]
[1748127290149,0.79559634,2531.9,2531.8,1.92346089]
[1748127290349,0.79559634,2531.9,2531.8,2.22356381]
[1748127290759,0.79559634,2531.9,2531.8,1.92346089]
[1748127291053,0.79559634,2531.9,2531.8,2.22365256]
[1748127291453,0.79559634,2531.9,2531.8,1.92352853]
[1748127291853,0.79559634,2531.9,2531.8,2.22367112]
[1748127292857,0.79559634,2531.9,2531.8,2.22366298]
[1748127293360,0.79559634,2531.9,2531.8,1.92352853]
[1748127293560,0.79559634,2531.9,2531.8,2.22365958]
[1748127294861,0.79559634,2531.9,2531.8,2.22365123]
[1748127295562,0.00591634,2531.9,2531.8,2.22365123]
[1748127295754,0.78984,2531.4,2531.3,0.71653329]
[1748127295954,0.78984,2531.4,2531.3,1.57471109]
[1748127296461,2.75954,2531.4,2531.3,1.01671655]
[1748127296657,2.75954,2531.4,2531.3,0.30018326]
[1748127298362,20.53354,2531.4,2531.3,0.30017744]
[1748127301566,19.7437,2531.4,2531.3,0.30017464]
[1748127301754,20.53354,2531.4,2531.3,0.30017464]
[1748127303366,1.97475,2531.3,2530.8,0.71653329]
[1748127303572,0.78999,2530.9,2530.8,0.71653329]
[1748127303867,18.56599,2530.9,2530.8,0.71653329]
[1748127304167,21.21979,2530.9,2530.8,0.71653329]
[1748127304874,0.79012,2530.5,2530.4,0.00396012]
[1748127305463,2.79102,2530.5,2530.4,0.00396012]
[1748127310075,5.99882,2530.5,2530.4,0.00396012]
[1748127310575,4.70192,2530.5,2530.4,0.00396012]
[1748127310871,22.48192,2530.5,2530.4,0.00396012]
[1748127312479,3.99792,2530.5,2530.4,0.00396012]
[1748127312671,3.99792,2530.5,2530.4,1.31536012]
[1748127312870,20.9888,2530.5,2530.4,2.10551012]
[1748127313171,21.77892,2530.5,2530.4,1.31536012]
[1748127314478,21.77892,2530.5,2530.4,17.25936012]
[1748127314679,21.77892,2530.5,2530.4,18.04951012]
[1748127314879,21.77892,2530.5,2530.4,17.25936012]
[1748127315282,18.57112,2530.5,2530.4,18.04951012]
[1748127315483,0.7901,2530.6,2530.5,0.79012]
[1748127315681,18.5711,2530.6,2530.5,2.80072]
[1748127316380,18.57109,2530.6,2530.5,2.80072]
[1748127316984,0.79009,2530.6,2530.5,2.80072]
[1748127317180,17.781,2530.6,2530.5,2.0106]
[1748127317980,18.57109,2530.6,2530.5,2.0106]
[1748127319373,3.2078,2530.8,2530.7,0.79006]
[1748127319682,3.2078,2531.1,2531.0,0.78996]
[1748127319881,3.2078,2531.1,2530.8,16.699]
[1748127320090,0.78999,2530.9,2530.8,16.699]
[1748127320380,0.78997,2531.0,2530.9,0.78998]
[1748127321284,21.77874,2531.1,2531.0,0.78996]
[1748127321484,0.78996,2531.0,2530.9,15.908]
[1748127322683,0.78996,2531.0,2530.9,16.69799]
[1748127323489,0.78996,2531.0,2530.9,15.908]
[1748127324185,2.11486,2531.0,2530.9,15.908]
[1748127324992,0.79003,2530.8,2530.7,0.6872]
[1748127325186,0.79003,2530.8,2530.7,16.5952]
[1748127328692,3.2078,2531.0,2530.9,0.78999]
[1748127328891,3.2078,2531.0,2530.9,1.08234155]
[1748127329196,3.2078,2531.0,2530.9,1.08232884]
[1748127329499,2.35624698,2531.2,2531.1,0.78993]
[1748127329695,2.35624698,2531.2,2531.1,16.99028871]
[1748127330093,3.2078,2531.3,2531.1,16.20035871]
[1748127330392,3.99767,2531.3,2531.2,1.4935]
[1748127330687,3.2078,2531.3,2531.2,1.4935]
[1748127330894,3.2078,2531.6,2531.5,0.78981]
[1748127331095,3.2078,2531.6,2531.5,16.69681]
[1748127331397,3.99758,2531.6,2531.5,15.907]
[1748127332003,3.99758,2531.6,2531.5,16.69681]
[1748127332200,3.99758,2531.6,2531.5,15.907]
[1748127332391,3.99758,2531.6,2531.5,16.69681]
[1748127332596,18.56876,2531.7,2531.5,15.907]
[1748127332791,17.779,2531.7,2531.6,0.78978]
[1748127332999,0.78973,2531.8,2531.6,0.78978]
[1748127333304,0.78973,2531.8,2531.7,2.11695]
[1748127333505,0.78972,2531.8,2531.7,1.3272]
[1748127333797,0.00591634,2531.9,2531.7,1.3272]
[1748127334002,0.00591634,2531.9,2531.8,0.78972]
[1748127336500,0.00591634,2531.9,2531.7,1.3272]
[1748127336702,0.78972,2531.8,2531.7,1.3272]
[1748127338402,2.72232,2531.8,2531.7,1.3272]
[1748127339107,1.9326,2531.8,2531.7,15.904]
[1748127339309,2.72233,2531.8,2531.7,15.904]
[1748127340400,1.97447,2531.6,2531.0,16.69295]
[1748127340603,3.99769,2531.3,2531.1,2.21073]
[1748127340807,3.99769,2531.3,2531.2,1.4208]
[1748127341700,0.78994,2531.1,2531.0,16.5974]
[1748127341906,0.78994,2531.1,2531.0,18.0182]
[1748127342304,0.78994,2531.1,2531.0,2.1152]
[1748127342606,0.78994,2531.1,2531.0,18.0192]
[1748127342799,6.01989,2531.3,2531.1,0.78992]
[1748127343005,5.23,2531.3,2531.2,2.21071]
[1748127343203,6.01987,2531.3,2531.2,1.4208]
[1748127344507,0.78994,2531.1,2531.0,1.48435]
[1748127344706,0.78994,2531.1,2531.0,18.74455]
[1748127345407,0.78994,2531.1,2531.0,19.03663103]
[1748127345802,0.78994,2531.1,2531.0,19.03663178]
[1748127347808,0.78994,2531.1,2531.0,19.03675455]
[1748127349010,0.78993,2531.2,2531.0,19.03675455]
[1748127349211,0.78993,2531.2,2531.1,1.334]
[1748127349610,0.78993,2531.2,2531.1,2.12394]
[1748127351507,6.01991,2531.3,2531.2,0.78991]
[1748127351708,6.01991,2531.3,2531.2,2.12941]
[1748127352308,5.36321,2531.3,2531.2,2.12941]
[1748127352509,20.9838,2531.3,2531.2,2.12941]
[1748127353912,3.2078,2531.3,2531.2,2.12941]
[1748127354613,3.99767,2531.3,2531.2,2.12941]
[1748127357614,3.2078,2531.3,2531.2,2.12941]
[1748127357815,3.2078,2531.3,2531.2,2.42218039]
[1748127358016,3.2078,2531.3,2531.2,2.12941]
[1748127358416,3.2078,2531.3,2531.2,2.42227747]
[1748127358816,3.99767,2531.3,2531.2,2.42227747]
[1748127360515,3.2078,2531.3,2531.2,2.42227747]
[1748127360716,3.2078,2531.3,2531.2,2.42228295]
[1748127361112,3.99767,2531.3,2531.2,2.42228295]
[1748127363017,3.2078,2531.3,2531.2,2.42228295]
[1748127363818,3.2078,2531.3,2531.2,2.42228494]
[1748127364319,3.99767,2531.3,2531.2,2.42228494]
[1748127364717,0.78987,2531.3,2531.2,2.42228494]
[1748127365519,3.99767,2531.3,2531.2,1.63237494]
[1748127365712,3.99767,2531.3,2531.2,0.2930446]
[1748127367214,0.79,2530.9,2530.8,1.37133329]
[1748127367414,0.79,2530.9,2530.8,17.24533329]
[1748127367622,0.79,2530.9,2530.8,17.53858934]
[1748127367818,2.2041,2530.9,2530.8,17.53858934]
[1748127368116,2.2041,2530.9,2530.8,18.89558361]
[1748127369020,2.2041,2530.9,2530.8,19.68561361]
[1748127369423,2.2041,2530.9,2530.8,18.89560571]
[1748127369623,2.2041,2530.9,2530.8,19.68563571]
[1748127370426,1.4141,2530.9,2530.8,19.68563571]
[1748127370622,2.2041,2530.9,2530.8,3.02160571]
[1748127370826,19.9811,2530.9,2530.8,0.70252756]
[1748127372122,19.9811,2530.9,2530.5,18.23570796]
[1748127372123,19.1911,2530.9,2530.5,17.2779]
[1748127372426,0.79009,2530.6,2530.5,17.2779]
[1748127372628,0.79009,2530.6,2530.5,17.57093638]
[1748127372927,2.12099,2530.6,2530.5,17.57093638]
[1748127373128,2.12099,2530.6,2530.5,17.57093633]
[1748127376533,2.12099,2530.6,2530.5,17.2779]
[1748127380135,2.12099,2530.6,2530.5,1.4039]
[1748127380339,0.79012,2530.5,2530.4,16.58066012]
[1748127380531,2.14182,2530.5,2530.4,16.87326382]
[1748127380941,2.14182,2530.5,2530.4,16.87324383]
[1748127381134,2.14182,2530.5,2530.4,17.89306012]
[1748127383137,2.14182,2530.5,2530.4,2.01606012]
[1748127383439,2.14182,2530.5,2530.4,0.00396012]
[1748127384946,19.92282,2530.5,2530.4,0.00396012]
[1748127385146,3.2078,2530.7,2530.5,0.7901]
[1748127385441,6.36155766,2530.7,2530.6,2.7467]
[1748127385645,24.14255766,2530.7,2530.6,2.7467]
[1748127386841,21.77886,2530.7,2530.6,2.7467]
[1748127387943,3.99786,2530.7,2530.6,2.7467]
[1748127389241,3.2078,2530.7,2530.6,3.53679]
[1748127389438,3.2078,2530.7,2530.6,3.82932917]
[1748127389633,3.99786,2530.7,2530.6,3.03923917]
[1748127389846,3.99786,2530.7,2530.6,3.03928248]
[1748127391144,0.79006,2530.7,2530.6,3.03928248]
[1748127391544,0.79006,2530.7,2530.6,3.03930241]
[1748127391848,0.79006,2530.7,2530.6,3.82939241]
[1748127392145,0.79006,2530.7,2530.6,3.03930241]
[1748127393544,0.79006,2530.7,2530.6,3.03952254]
[1748127393847,0.79002,2530.9,2530.7,0.79003]
[1748127394039,0.79002,2530.9,2530.8,2.09983]
[1748127394352,0.79002,2530.9,2530.8,17.94683]
[1748127394738,0.79002,2530.9,2530.8,17.1568]
[1748127396448,0.79002,2530.9,2530.8,17.44991227]
[1748127398844,5.57149766,2531.0,2530.9,0.79]
[1748127399044,5.57149766,2531.0,2530.9,2.50875994]
[1748127399551,6.36146766,2531.0,2530.9,2.50875994]
[1748127399945,6.36146766,2531.0,2530.9,3.07773993]
[1748127400349,3.99777,2531.0,2530.9,3.07839072]
[1748127400652,3.99777,2531.0,2530.9,3.7807935]
[1748127400949,3.99777,2531.0,2530.9,3.2111168]
[1748127401154,3.99777,2531.0,2530.9,3.78074324]
[1748127402859,3.99777,2531.0,2530.9,3.78061803]
[1748127403465,0.78997,2531.0,2530.9,3.78061803]
[1748127404066,0.78997,2531.0,2530.9,3.07821525]
[1748127404663,0.78997,2531.0,2530.9,3.07782441]
[1748127406562,0.78997,2531.0,2530.9,3.07779454]
[1748127406766,0.78997,2531.0,2530.9,3.07776454]
[1748127407663,0.78996,2531.1,2531.0,0.78995]
[1748127407856,0.78996,2531.1,2531.0,3.00554454]
[1748127408359,0.78996,2531.1,2531.0,2.436211]
[1748127408564,0.78996,2531.1,2531.0,3.00542232]
[1748127410266,0.78996,2531.1,2531.0,3.00540694]
[1748127410865,0.78992,2531.2,2531.1,0.78991]
[1748127411063,0.78992,2531.2,2531.1,1.35912132]
[1748127412065,21.55179766,2531.4,2531.1,1.35912132]
[1748127412066,2.36369766,2531.4,2531.3,0.78987]
[1748127412265,2.36369766,2531.4,2531.3,17.46782701]
[1748127412468,0.78983,2531.5,2531.4,0.78984]
[1748127412653,0.78983,2531.5,2531.4,1.65179701]
[1748127413057,6.0577,2531.6,2531.5,0.78981]
[1748127413266,6.0577,2531.6,2531.5,0.56910898]
[1748127413967,6.0577,2531.6,2531.5,0.56897542]
[1748127415770,0.78981,2531.5,2531.4,15.816]
[1748127415973,2.18731,2531.5,2531.4,16.38511965]
[1748127416469,1.3975,2531.5,2531.4,17.17495965]
[1748127417172,2.18731,2531.5,2531.4,16.38511965]
[1748127417869,2.18731,2531.5,2531.4,16.38512297]
[1748127419669,2.18731,2531.5,2531.4,16.38516973]
[1748127420976,1.3975,2531.5,2531.4,17.17500973]
[1748127421167,0.78981,2531.5,2531.4,16.38517129]
[1748127421472,2.20771,2531.5,2531.4,16.38517129]
[1748127424977,1.4179,2531.5,2531.4,17.17501129]
[1748127425177,22.4236,2531.6,2531.5,0.78981]
[1748127425479,4.6476,2531.6,2531.5,2.03938129]
[1748127425671,4.6476,2531.6,2531.5,2.69918129]
[1748127425966,3.9976,2531.6,2531.5,2.9920123]
[1748127426277,3.9976,2531.6,2531.5,2.99208231]
[1748127426670,0.7898,2531.6,2531.5,2.99208231]
[1748127426870,0.7898,2531.6,2531.5,2.20227231]
[1748127427370,0.7898,2531.6,2531.5,3.55037231]
[1748127429168,0.7898,2531.6,2531.5,2.21017231]
[1748127429373,3.80364766,2531.8,2531.5,2.21017231]
[1748127429675,0.78975,2531.7,2531.6,3.69153231]
[1748127429875,0.78975,2531.7,2531.6,3.69188421]
[1748127430080,0.78975,2531.7,2531.6,2.90212421]
[1748127430480,0.78975,2531.7,2531.6,3.69190421]
[1748127430780,0.78975,2531.7,2531.6,2.90212421]
[1748127430983,2.84904,2531.8,2531.6,2.90212421]
[1748127431180,2.84904,2531.8,2531.7,2.23212421]
[1748127431478,2.84904,2531.8,2531.7,3.68447421]
[1748127431674,2.84904,2531.8,2531.7,2.32524884]
[1748127431879,2.84904,2531.8,2531.7,2.89457846]
[1748127432389,2.84904,2531.8,2531.7,2.89451818]
[1748127432879,1.43994,2531.8,2531.7,2.89451818]
[1748127433079,1.43994,2531.8,2531.7,3.68426818]
[1748127433586,0.78974,2531.8,2531.7,3.68415074]
[1748127435372,0.78974,2531.8,2531.7,3.11489242]
[1748127435685,3.99754,2531.8,2531.7,3.68411116]
[1748127437387,3.2078,2531.8,2531.7,3.68411116]
[1748127438480,0.00591634,2531.9,2531.8,0.78972]
[1748127438684,0.00591634,2531.9,2531.8,18.81238116]
[1748127439293,0.00591634,2531.9,2531.8,18.81238278]
[1748127439483,0.00591634,2531.9,2531.8,19.51493183]
[1748127440988,0.00591634,2531.9,2531.8,19.51507311]
[1748127442889,0.00591634,2531.9,2531.8,19.51501847]
[1748127444485,0.79560634,2531.9,2531.8,19.51501847]
[1748127444687,0.79560634,2531.9,2531.8,18.81232561]
[1748127445991,0.79560634,2531.9,2531.8,18.02258404]
[1748127446791,0.79560634,2531.9,2531.8,18.02259705]
[1748127447187,0.79560634,2531.9,2531.8,0.86199705]
[1748127447382,5.79560634,2531.9,2531.8,0.56921206]
[1748127447686,7.79070634,2531.9,2531.8,0.56921206]
[1748127448386,0.78978,2531.6,2531.5,0.71653329]
[1748127448689,21.76958,2531.6,2531.5,0.86221508]
[1748127448889,21.76958,2531.6,2531.5,0.56935286]
[1748127450786,22.43008,2531.6,2531.5,0.56935286]
[1748127452289,0.78984,2531.4,2531.3,17.0827]
[1748127452489,0.78984,2531.4,2531.3,17.94447913]
[1748127452798,2.77193,2531.5,2531.3,18.73433913]
[1748127453090,2.77191,2531.5,2531.4,0.86177913]
[1748127453292,2.77191,2531.5,2531.4,2.24677913]
[1748127455393,2.77191,2531.5,2531.4,3.03661913]
[1748127455394,1.47961,2531.5,2531.4,3.03661913]
[1748127455694,19.25361,2531.5,2531.4,4.37921913]
[1748127455894,19.25361,2531.5,2531.4,4.3792948]
[1748127457793,19.25361,2531.5,2531.4,4.37928283]
[1748127457994,22.46141,2531.5,2531.4,4.37928283]
[1748127460599,22.46141,2531.5,2531.4,4.37918842]
[1748127461094,22.46141,2531.5,2531.4,3.58934842]
[1748127461296,22.46141,2531.5,2531.4,0.56946929]
[1748127461496,0.78994,2531.1,2531.0,0.71653329]
[1748127461799,3.99774,2531.1,2531.0,0.71653329]
[1748127462199,8.99774,2531.1,2531.0,0.71653329]
[1748127462391,11.09674,2531.1,2531.0,0.71653329]
[1748127462893,11.40694374,2531.1,2531.0,0.71653329]
[1748127463093,0.79009,2530.6,2530.5,15.783]
[1748127463295,0.79009,2530.6,2530.5,16.06843263]
[1748127463504,0.79009,2530.6,2530.5,15.783]
[1748127463693,3.57389,2530.6,2530.5,15.783]
[1748127465301,3.57389,2530.6,2530.5,17.1954]
[1748127466691,0.79012,2530.5,2530.4,0.00396012]
[1748127466990,1.48072,2530.5,2530.4,0.00396012]
[1748127467503,2.77032,2530.5,2530.4,0.00396012]
[1748127470101,1.97546,2530.4,2529.2,0.71741567]
[1748127470405,0.7904,2529.7,2529.5,3.99823]
[1748127470607,0.7904,2529.7,2529.6,2.1172]
[1748127470808,0.7904,2529.7,2529.6,2.7777]
[1748127471105,0.79036,2529.8,2529.6,3.5681]
[1748127471305,0.79036,2529.8,2529.7,1.2934]
[1748127473106,3.21372839,2529.9,2529.7,1.2934]
[1748127473401,3.21372839,2529.9,2529.8,1.3435888]
[1748127474105,4.00403839,2529.9,2529.8,1.3435888]
[1748127474410,4.00403839,2529.9,2529.8,1.34364143]
[1748127475603,4.00403839,2529.9,2529.8,17.10464143]
[1748127476107,4.00403839,2529.9,2529.8,16.31430143]
[1748127476299,4.00403839,2529.9,2529.8,16.31427374]
[1748127476495,4.00403839,2529.9,2529.8,17.61337374]
[1748127478710,4.00403839,2529.9,2529.8,18.40371374]
[1748127479208,4.00403839,2529.9,2529.8,18.40471374]
[1748127479602,3.21372839,2529.9,2529.8,18.40471374]
[1748127480010,0.00592839,2529.9,2529.8,18.40471374]
[1748127481311,0.00592839,2529.9,2529.8,18.40480842]
[1748127483214,0.00592839,2529.9,2529.8,17.85144]
[1748127483409,0.00592839,2529.9,2529.8,18.40500351]
[1748127484915,0.00592839,2529.9,2529.8,18.40532225]
[1748127486212,0.00592839,2529.9,2529.8,23.68981227]
[1748127486919,0.00592839,2529.9,2529.8,23.6902568]
[1748127488514,0.00592839,2529.9,2529.8,18.6902568]
[1748127488814,0.00592839,2529.9,2529.8,18.69135474]
[1748127489516,0.00592839,2529.9,2529.8,19.39112772]
[1748127490511,0.00592839,2529.9,2529.8,18.83666629]
[1748127490717,0.00592839,2529.9,2529.8,19.39262623]
[1748127491919,0.00592839,2529.9,2529.8,20.1100419]
[1748127492417,0.00592839,2529.9,2529.8,20.11050064]
[1748127493317,0.79017,2530.4,2530.3,0.79016]
[1748127493513,0.79017,2530.4,2530.3,17.108423]
[1748127494319,0.79017,2530.4,2530.3,17.39421903]
[1748127494520,0.79017,2530.4,2530.3,16.60402903]
[1748127494717,0.79017,2530.4,2530.3,17.39421903]
[1748127494911,0.79017,2530.4,2530.3,18.70601903]
[1748127496212,0.79017,2530.4,2530.3,18.70626345]
[1748127497918,2.0445,2530.5,2530.4,0.79016]
[1748127497919,2.83463,2530.5,2530.4,0.79016]
[1748127498114,2.83463,2530.5,2530.4,1.34684939]
[1748127498509,2.83463,2530.5,2530.4,2.75514939]
[1748127498713,2.83463,2530.5,2530.4,1.96498939]
[1748127499820,2.83463,2530.5,2530.4,1.96494638]
[1748127501420,2.83463,2530.5,2530.4,2.75509638]
[1748127501622,2.83463,2530.5,2530.4,1.96494638]
[1748127501920,2.83463,2530.5,2530.4,2.75523653]
[1748127502315,2.83463,2530.5,2530.4,1.96508653]
[1748127502622,2.83463,2530.5,2530.4,0.55678653]
[1748127503220,0.79028,2530.0,2529.9,0.71741567]
[1748127503416,21.78108,2530.0,2529.9,0.71741567]
[1748127503720,0.79037,2529.7,2529.4,1.91341339]
[1748127503912,3.99817,2529.7,2529.4,1.91341339]
[1748127504113,1.97603,2529.6,2529.1,2.39195809]
[1748127504319,3.99833,2529.2,2529.1,2.39195809]
[1748127504514,0.79062,2528.9,2528.8,3.29823597]
[1748127504827,3.99842,2528.9,2528.8,3.29823597]
[1748127505029,3.99842,2528.9,2528.0,1.3485]
[1748127505030,1.97672,2528.7,2528.0,1.3485]
[1748127505320,0.79087,2528.2,2528.0,17.0835]
[1748127505519,1.3851,2528.1,2528.0,17.0835]
[1748127505726,1.3851,2528.1,2528.0,17.8744]
[1748127505929,3.2078,2528.5,2528.2,0.79082]
[1748127506229,1.3851,2528.4,2528.1,0.79087]
[1748127506427,1.3851,2528.4,2528.2,1.3485]
[1748127506725,4.5929,2528.4,2528.2,1.3485]
[1748127506925,1.3851,2528.4,2528.2,1.3485]
[1748127507322,1.3851,2528.4,2528.2,2.13932]
[1748127507521,4.5929,2528.4,2527.8,3.9196]
[1748127507726,4.5929,2528.4,2527.7,15.738]
[1748127507727,3.2078,2528.0,2527.7,15.738]
[1748127507926,1.4055,2527.9,2527.7,15.738]
[1748127508116,2.19645,2527.9,2527.7,15.738]
[1748127508321,1.4055,2527.9,2527.7,15.738]
[1748127508528,2.19645,2527.9,2527.7,15.738]
[1748127508730,0.79096,2527.8,2527.7,15.738]
[1748127509026,1.4055,2527.8,2527.7,15.738]
[1748127510224,3.2078,2528.0,2527.7,15.738]
[1748127510420,17.789,2528.2,2527.8,1.3503]
[1748127510625,2.09115,2527.9,2527.4,3.99888]
[1748127510825,3.2078,2527.7,2527.1,3.2078]
[1748127511029,0.79122,2527.1,2526.8,1.2833]
[1748127511230,1.3002,2527.0,2526.8,1.2833]
[1748127511429,1.3002,2527.0,2526.6,15.741]
[1748127511725,1.29335606,2527.0,2526.6,15.741]
[1748127512233,0.00592839,2527.2,2527.1,0.79118]
[1748127512432,0.00592839,2527.2,2527.1,16.53218]
[1748127512630,0.00592839,2527.2,2527.1,15.741]
[1748127513824,3.21372839,2527.2,2527.1,15.745]
[1748127514019,4.00490839,2527.2,2526.9,1.2833]
[1748127514228,3.21372839,2527.2,2526.7,16.4394]
[1748127514730,3.2078,2526.9,2526.7,15.745]
[1748127514927,1.2939,2526.8,2526.7,15.745]
[1748127515127,2.08518,2526.8,2526.7,15.745]
[1748127515627,1.2939,2526.8,2526.4,0.79138]
[1748127515929,1.2939,2526.8,2526.5,15.745]
[1748127516132,1.2939,2526.8,2526.5,17.1512]
[1748127517130,0.79135,2526.6,2526.2,3.2078]
[1748127517336,1.2939,2526.8,2526.3,15.748]
[1748127517538,0.79137,2526.5,2526.4,1.3836]
[1748127517835,0.79138,2526.5,2526.2,1.3836]
[1748127518034,2.21378,2526.5,2526.2,1.3836]
[1748127518233,1.4224,2526.5,2526.2,1.3836]